[Event "World Senior chT-65 2019"]
[Site "Rhodes"]
[Date "2019.04.23"]
[Round "8.38"]
[White "Steedman, James"]
[Black "Titz, Heimo"]
[Result "1/2-1/2"]
[ECO "E42"]
[WhiteElo "2127"]
[BlackElo "2096"]
[Annotator "NA"]
[PlyCount "100"]
[EventDate "2019.04.16"]
[EventType "team-tourn"]
[EventCountry "GRE"]
[SourceTitle "playchess.com"]
[Source "ChessBase"]
[SourceQuality "1"]
[WhiteTeam "Norway"]
[BlackTeam "Austria"]
[WhiteTeamCountry "NOR"]
[BlackTeamCountry "AUT"]
[TimeControl "40/5400+30:1800+30"]

1. d4 {[%emt 0:00:00]} Nf6 {[%emt 0:00:00]} 2. c4 {[%emt 0:00:00]} e6 {[%emt 0:00:08]} 3. Nc3 {[%emt 0:00:13]} Bb4 {[%emt 0:00:41]} 4. e3 {[%emt 0:00:23]} c5 {[%emt 0:01:32]} 5. Nge2 {[%emt 0:01:30]} cxd4 {[%emt 0:04:12]} 6. exd4 {[%emt 0:00:29]} O-O {[%emt 0:00:55]} 7. a3 {[%emt 0:00:28]} Be7 {[%emt 0:00:49]} 8. Nf4 {[%emt 0:00:46]} d5 {[%emt 0:01:12]} 9. cxd5 {[%emt 0:00:42]} Nxd5 {[%emt 0:00:45]} 10. Ncxd5 {[%emt 0:00:38]} exd5 {[%emt 0:00:25]} 11. Bd3 {[%emt 0:00:36]} Nc6 {[%emt 0:00:48]} 12. O-O {[%emt 0:00:24]} g6 {[%emt 0:02:23]} 13. Be3 {[%emt 0:01:24]} Bf6 {[%emt 0:01:11]} 14. Rc1 {[%emt 0:01:38]} Nxd4 {[%emt 0:15:14] E42: Nimzo-Indian: Rubinstein: 4...c5 5 Ne2} (14... Qd6 15. Rc5 Be6 16. Nxe6 Qxe6 17. Bb5 Rac8 18. Re1 Rfe8 19. Bd2 Qd7 20. Rxe8+ Qxe8 21. Be3 Qe6 22. h3 {½-½ (47) Babula,V (2522)-Yu,Y (2765) Porto Carras 2018}) 15. Bxd4 {[%emt 0:01:49]} Bxd4 {[%emt 0:00:19]} 16. Bxg6 {[%emt 0:00:41]} Bg7 {[%emt 0:04:56]} 17. Bb1 {[%emt 0:05:36]} Qh4 {[%emt 0:16:45]} 18. g3 {[%emt 0:04:23]} Qh6 {[%emt 0:03:02]} 19. Qxd5 $146 {[%emt 0:02:29]} ({Predecessor:} 19. b4 Be6 20. Rc7 b5 21. Qe2 a6 22. Rfc1 {1-0 (48) Vekelis,G-Trani,F (1950) ICCF email 2007}) 19... Be6 {[%emt 0:05:57]} 20. Nxe6 {[%emt 0:02:17]} fxe6 {[%emt 0:01:18]} 21. Qe4 {[%emt 0:02:35]} Rac8 {[%emt 0:04:47]} 22. Rxc8 {[%emt 0:02:57]} Rxc8 {[%emt 0:00:07]} 23. Ba2 {[%emt 0:00:44]} Rc6 {[%emt 0:05:16]} 24. Rd1 {[%emt 0:02:24]} Bf8 {[%emt 0:07:40]} 25. Rd7 {[%emt 0:03:07]} Qh3 {[%emt 0:09:33]} 26. Qe3 {[%emt 0:05:51]} Bh6 {[%emt 0:01:28]} 27. f4 {[%emt 0:00:42]} Bf8 {[%emt 0:00:49]} 28. b4 {[%emt 0:02:10]} a5 {[%emt 0:01:00]} 29. Rxb7 {[%emt 0:08:31]} axb4 {[%emt 0:00:25]} 30. axb4 $18 {[%emt 0:00:38]} Ra6 {[%emt 0:01:24]} 31. Bb1 {[%emt 0:01:58]} Ra1 {[%emt 0:00:29]} 32. Qe4 {[%emt 0:05:18]} Qf5 {[%emt 0:00:21]} 33. Qxf5 {[%emt 0:00:13]} exf5 {[%emt 0:00:05]} 34. Rb5 {[%emt 0:01:00]} Rxb1+ {[%emt 0:00:16]} 35. Kg2 {[%emt 0:00:12]} Rb2+ {[%emt 0:00:36]} 36. Kh3 {[%emt 0:01:22]} Bxb4 {[%emt 0:01:22]} 37. Rxf5 {[%emt 0:00:17]} Be7 {[%emt 0:01:05]} 38. Rd5 {[%emt 0:02:15]} Kf7 {[%emt 0:00:33]} 39. Kg4 {[%emt 0:04:36]} Rxh2 {[%emt 0:01:06]} 40. Rh5 {[%emt 0:00:00]} Rxh5 {[%emt 0:00:00]} 41. Kxh5 {[%emt 0:00:22]} Kg7 {[%emt 0:02:54]} 42. g4 {[%emt 0:01:05]} Bd6 {[%emt 0:02:15]} 43. f5 {[%emt 0:00:28]} Bf4 {[%emt 0:11:34]} 44. g5 {[%emt 0:00:43]} Bd2 {[%emt 0:01:13]} 45. Kg4 {[%emt 0:00:18]} Kf8 {[%emt 0:00:56]} 46. Kh5 {[%emt 0:00:13]} Be3 {[%emt 0:00:57]} 47. Kh6 {[%emt 0:01:23]} Kg8 {[%emt 0:00:38]} 48. Kh5 {[%emt 0:00:23]} Kg7 {[%emt 0:01:04]} 49. Kg4 {[%emt 0:00:11]} Bd2 {[%emt 0:00:50]} 50. Kh5 {[%emt 0:00:08]} Be3 {[%emt 0:03:27]} 1/2-1/2

[Event "World Senior chT-65 2019"]
[Site "Rhodes"]
[Date "2019.04.23"]
[Round "8.40"]
[White "Johnsen, Oystein"]
[Black "Danner, Lambert"]
[Result "1-0"]
[ECO "D00"]
[WhiteElo "1986"]
[BlackElo "2013"]
[Annotator "NA"]
[PlyCount "65"]
[EventDate "2019.04.16"]
[EventType "team-tourn"]
[EventCountry "GRE"]
[SourceTitle "playchess.com"]
[Source "ChessBase"]
[SourceQuality "1"]
[WhiteTeam "Norway"]
[BlackTeam "Austria"]
[WhiteTeamCountry "NOR"]
[BlackTeamCountry "AUT"]
[TimeControl "40/5400+30:1800+30"]

1. d4 {[%emt 0:00:00]} d5 {[%emt 0:00:00]} 2. Bf4 {[%emt 0:00:00]} Nf6 {[%emt 0:01:00]} 3. e3 {[%emt 0:00:45]} Bf5 {[%emt 0:01:42]} 4. c4 {[%emt 0:02:08]} e6 {[%emt 0:01:21]} 5. Nc3 {[%emt 0:04:15]} c6 {[%emt 0:01:41]} 6. Qb3 {[%emt 0:00:00]} Qb6 {[%emt 0:01:33]} 7. c5 {[%emt 0:00:18]} Qxb3 {[%emt 0:00:18]} 8. axb3 {[%emt 0:00:03]} Nbd7 {[%emt 0:00:49]} 9. b4 {[%emt 0:00:46]} e5 {[%emt 0:12:13]} 10. Bg3 {[%emt 0:11:56]} a6 {[%emt 0:01:35]} 11. b5 {[%emt 0:00:18]} cxb5 {[%emt 0:08:28]} 12. Nxb5 {[%emt 0:03:55]} Rc8 {[%emt 0:00:13]} 13. Nc3 {[%emt 0:00:25]} exd4 {[%emt 0:03:42]} 14. exd4 {[%emt 0:00:22]} Be6 {[%emt 0:01:53]} 15. b4 {[%emt 0:04:29]} Ne4 {[%emt 0:01:22]} 16. Nxe4 {[%emt 0:03:07]} dxe4 {[%emt 0:00:07]} 17. Ne2 {[%emt 0:02:11]} Nf6 {[%emt 0:04:07]} 18. Nc3 {[%emt 0:10:04]} Nd5 {[%emt 0:00:41]} 19. Nxd5 {[%emt 0:00:09]} Bxd5 {[%emt 0:00:07]} 20. b5 {[%emt 0:00:26]} axb5 {[%emt 0:00:12]} 21. Bxb5+ {[%emt 0:00:08]} Bc6 {[%emt 0:00:06]} 22. Bxc6+ {[%emt 0:00:47]} bxc6 {[%emt 0:00:11]} 23. O-O {[%emt 0:00:55]} f5 {[%emt 0:02:04]} 24. f3 {[%emt 0:01:19]} exf3 {[%emt 0:01:02]} 25. Rxf3 {[%emt 0:00:14]} g6 {[%emt 0:00:40]} 26. Be5 {[%emt 0:00:13]} Rg8 {[%emt 0:00:05]} 27. Ra7 {[%emt 0:00:17]} Be7 {[%emt 0:01:04]} 28. Re3 {[%emt 0:02:59]} Kd8 {[%emt 0:01:34]} 29. g3 {[%emt 0:08:03]} h5 {[%emt 0:00:49]} 30. Bf4 {[%emt 0:01:01]} Bf6 {[%emt 0:01:02]} 31. Kg2 {[%emt 0:01:57]} Rg7 {[%emt 0:02:16]} 32. Rxg7 {[%emt 0:00:24]} Bxg7 {[%emt 0:00:16]} 33. Bg5+ {[%emt 0:00:46]} 1-0

[Event "World Senior chT-65 2019"]
[Site "Rhodes"]
[Date "2019.04.23"]
[Round "8.41"]
[White "Rantanen, Veikko"]
[Black "Maki, Christer"]
[Result "0-1"]
[ECO "E91"]
[WhiteElo "1971"]
[BlackElo "1885"]
[Annotator "NA RC"]
[PlyCount "94"]
[EventDate "2019.04.16"]
[EventType "team-tourn"]
[EventCountry "GRE"]
[SourceTitle "playchess.com"]
[Source "ChessBase"]
[SourceQuality "1"]
[WhiteTeam "Finland"]
[BlackTeam "Sweden"]
[WhiteTeamCountry "FIN"]
[BlackTeamCountry "SWE"]
[TimeControl "40/5400+30:1800+30"]

1. e4 {[%emt 0:00:00]} (1. Nf3 Nf6 2. c4 b6 3. Nc3 Bb7 4. d4 g6 5. d5 Bg7 6. e4 O-O 7. Be2 e5 8. O-O d6 9. Be3 a5 10. Nd2 Nbd7 11. a3 Ne8 12. b4 f5 {0-1 (51) Kozul,Z (2613)-Bortnyk,O (2581) Doha 2016}) 1... g6 {[%emt 0:00:00]} 2. d4 {[%emt 0:00:00]} Bg7 {[%emt 0:00:37]} 3. c4 {[%emt 0:00:22]} d6 {[%emt 0:00:00]} 4. Nc3 {[%emt 0:00:13]} Nf6 {[%emt 0:00:27]} 5. Nf3 {[%emt 0:01:14]} O-O {[%emt 0:03:45]} 6. Be2 {[%emt 0:00:22]} b6 {[%emt 0:04:23]} 7. O-O {[%emt 0:00:53]} Bb7 {[%emt 0:00:25]} 8. d5 {[%emt 0:00:36]} e5 {[%emt 0:01:55] E91: King's Indian: Classical: 6 Be2, unusual replies including 6...c5 and 6...Bg4} 9. Bg5 {[%emt 0:01:58]} h6 $146 {[%emt 0:02:39]} ({Predecessor:} 9... Nbd7 10. Qd2 Re8 11. b4 h6 12. Bh4 a5 13. a3 c6 14. Rfc1 axb4 15. axb4 {1-0 (34) Raines,D (1198)-Goti,J (983) LSS email 2009}) 10. Be3 {[%emt 0:08:07]} Ng4 {[%emt 0:01:38]} 11. Bd2 {[%emt 0:00:10]} f5 {[%emt 0:01:10]} 12. h3 {[%emt 0:02:32]} Nf6 {[%emt 0:00:11]} 13. exf5 {[%emt 0:07:53]} gxf5 {[%emt 0:02:21]} 14. Nh4 {[%emt 0:06:01]} Nh7 {[%emt 0:03:57]} 15. g3 {[%emt 0:02:22]} Qf6 {[%emt 0:02:00]} 16. Nb5 {[%emt 0:01:54]} Na6 {[%emt 0:00:58]} 17. Ng2 {[%emt 0:07:20]} c6 {[%emt 0:02:15]} 18. Bc3 {[%emt 0:03:02]} cxb5 {[%emt 0:00:34]} 19. cxb5 {[%emt 0:00:15]} Nc5 {[%emt 0:01:03]} 20. f3 {[%emt 0:00:35]} Qf7 {[%emt 0:05:08]} 21. Bc4 {[%emt 0:04:10]} Rac8 {[%emt 0:02:56]} 22. b3 {[%emt 0:00:40]} Ng5 {[%emt 0:03:20]} 23. Kh2 {[%emt 0:00:16]} e4 {[%emt 0:02:52]} 24. Bxg7 {[%emt 0:01:25]} Qxg7 {[%emt 0:00:15]} 25. Nh4 {[%emt 0:01:29]} f4 {[%emt 0:01:03]} 26. g4 {[%emt 0:01:42]} Nxf3+ {[%emt 0:03:29]} 27. Nxf3 {[%emt 0:00:21]} exf3 {[%emt 0:00:07]} 28. Rxf3 {[%emt 0:00:29]} Rce8 {[%emt 0:00:54]} 29. Rb1 {[%emt 0:01:20]} Bc8 {[%emt 0:01:54]} 30. Qc2 {[%emt 0:01:06]} Re3 {[%emt 0:02:44]} 31. Rbf1 {[%emt 0:01:38]} Rxf3 {[%emt 0:00:57]} 32. Rxf3 {[%emt 0:00:06]} Nd7 {[%emt 0:00:50]} 33. Qf2 {[%emt 0:01:14]} Qg5 {[%emt 0:00:54]} 34. Be2 {[%emt 0:02:39]} Kh8 {[%emt 0:02:31]} 35. Rc3 {[%emt 0:00:45]} Qe5 {[%emt 0:01:34]} 36. Rf3 {[%emt 0:02:07]} Qxd5 {[%emt 0:01:13]} 37. Bc4 {[%emt 0:00:54]} Qe5 {[%emt 0:00:41]} 38. Qc2 {[%emt 0:02:16]} Kg7 {[%emt 0:03:02]} 39. Bd3 {[%emt 0:01:11]} Bb7 {[%emt 0:03:42]} 40. Rf2 {[%emt 0:00:00]} f3+ {[%emt 0:00:00]} 41. Kg1 {[%emt 0:03:36]} Qg3+ $19 {[%emt 0:02:08] Double Attack} 42. Kf1 {[%emt 0:00:09]} Qxh3+ {[%emt 0:00:06]} 43. Ke1 {[%emt 0:00:12]} Rc8 {[%emt 0:03:58]} 44. Qb2+ {[%emt 0:01:03]} Ne5 {[%emt 0:00:25]} 45. Qd4 {[%emt 0:03:14]} Qxg4 {[%emt 0:02:51]} 46. Qxd6 {[%emt 0:00:42]} Nxd3+ {[%emt 0:00:28]} 47. Qxd3 {[%emt 0:00:42]} Qe4+ {[%emt 0:00:08]} 0-1

[Event "World Senior chT-65 2019"]
[Site "Rhodes"]
[Date "2019.04.23"]
[Round "8.42"]
[White "Wihlborn, Bengt"]
[Black "Ranki, Martti"]
[Result "1/2-1/2"]
[ECO "A13"]
[WhiteElo "1820"]
[BlackElo "1940"]
[Annotator "NA RC"]
[PlyCount "60"]
[EventDate "2019.04.16"]
[EventType "team-tourn"]
[EventCountry "GRE"]
[SourceTitle "playchess.com"]
[Source "ChessBase"]
[SourceQuality "1"]
[WhiteTeam "Sweden"]
[BlackTeam "Finland"]
[WhiteTeamCountry "SWE"]
[BlackTeamCountry "FIN"]
[TimeControl "40/5400+30:1800+30"]

1. Nf3 {[%emt 0:00:00]} d5 {[%emt 0:00:09]} 2. c4 {[%emt 0:00:00]} e6 {[%emt 0:01:32]} 3. e3 {[%emt 0:00:17]} c5 {[%emt 0:01:05]} 4. cxd5 {[%emt 0:00:18]} exd5 {[%emt 0:00:30]} 5. d4 {[%emt 0:00:12]} Nc6 {[%emt 0:01:53]} 6. Be2 {[%emt 0:01:06]} Nf6 {[%emt 0:00:21]} 7. O-O {[%emt 0:00:24]} Be7 {[%emt 0:00:06]} 8. b3 {[%emt 0:00:12]} O-O {[%emt 0:03:01]} 9. Bb2 {[%emt 0:00:09]} h6 {[%emt 0:04:15] A13: English Opening: 1...e6} (9... Bg4 10. Nc3 Rc8 11. Rc1 Bxf3 12. Bxf3 cxd4 13. exd4 Qa5 14. a3 Rfe8 15. b4 Qd8 16. Re1 Qd7 17. Qd3 Bf8 18. g3 {1-0 (66) Anton Guijarro,D (2642)-Tilicheev,V (2507) Skopje 2018}) 10. Nc3 {[%emt 0:01:20]} Bf5 {[%emt 0:06:22]} 11. dxc5 {[%emt 0:01:11]} Bxc5 {[%emt 0:00:50]} 12. Rc1 $146 {[%emt 0:00:16]} ({Predecessor:} 12. Nb5 a6 13. Nbd4 Nxd4 14. Nxd4 Be4 15. Rc1 Qd6 16. Bf3 Bg6 17. Qe2 {½-½ (37) Schwammberger,E-Murati,A Zuerich 1997}) 12... Be7 {[%emt 0:06:20]} 13. Nb5 {[%emt 0:01:08]} Rc8 {[%emt 0:04:11]} 14. Nbd4 {[%emt 0:01:31]} Bd7 {[%emt 0:04:48]} 15. Rc2 {[%emt 0:04:19]} Nxd4 {[%emt 0:02:39]} 16. Nxd4 {[%emt 0:07:27]} Ne4 {[%emt 0:03:54]} 17. Rxc8 {[%emt 0:02:33]} Qxc8 {[%emt 0:01:22]} 18. Qd3 {[%emt 0:05:12]} Bf6 {[%emt 0:04:19]} 19. Rc1 {[%emt 0:07:47]} Qd8 {[%emt 0:00:46]} 20. a3 {[%emt 0:07:47]} Re8 {[%emt 0:02:04]} 21. b4 {[%emt 0:02:26]} a6 {[%emt 0:03:36]} 22. Qb3 {[%emt 0:01:35]} Be6 {[%emt 0:02:22]} 23. b5 {[%emt 0:03:10]} Qb6 {[%emt 0:08:41]} 24. a4 {[%emt 0:02:37]} axb5 {[%emt 0:05:34]} 25. Bxb5 {[%emt 0:00:59]} Rd8 {[%emt 0:01:55]} 26. Qb4 {[%emt 0:09:34]} Ra8 $11 {[%emt 0:03:32]} 27. f3 {[%emt 0:05:54]} Nd6 {[%emt 0:05:48]} 28. Qc5 {[%emt 0:03:11]} Qxc5 {[%emt 0:08:24]} 29. Rxc5 {[%emt 0:00:02]} Nxb5 {[%emt 0:01:04]} 30. Rxb5 {[%emt 0:00:26]} Rxa4 {[%emt 0:00:11]} 1/2-1/2

[Event "World Senior chT-65 2019"]
[Site "Rhodes"]
[Date "2019.04.23"]
[Round "8.43"]
[White "Alkkiomaki, Jyrki"]
[Black "Dalling, Peter"]
[Result "1/2-1/2"]
[ECO "C42"]
[WhiteElo "1908"]
[BlackElo "1830"]
[Annotator "NA RC"]
[PlyCount "84"]
[EventDate "2019.04.16"]
[EventType "team-tourn"]
[EventCountry "GRE"]
[SourceTitle "playchess.com"]
[Source "ChessBase"]
[SourceQuality "1"]
[WhiteTeam "Finland"]
[BlackTeam "Sweden"]
[WhiteTeamCountry "FIN"]
[BlackTeamCountry "SWE"]
[TimeControl "40/5400+30:1800+30"]

1. e4 {[%emt 0:00:00]} e5 {[%emt 0:00:00]} 2. Nf3 {[%emt 0:00:09]} Nf6 {[%emt 0:00:00]} 3. Nxe5 {[%emt 0:00:10]} Nc6 {[%emt 0:00:00]} 4. Nxc6 {[%emt 0:02:32]} dxc6 {[%emt 0:00:00]} 5. Nc3 {[%emt 0:01:53]} Bc5 {[%emt 0:00:00]} 6. h3 {[%emt 0:03:53]} Be6 {[%emt 0:00:55]} 7. d3 {[%emt 0:02:44]} h6 {[%emt 0:02:46]} 8. Qe2 {[%emt 0:05:03]} Qe7 {[%emt 0:00:25]} 9. Be3 {[%emt 0:02:12]} Bb4 {[%emt 0:00:42]} 10. Bd2 {[%emt 0:00:25]} O-O-O {[%emt 0:03:09]} 11. a3 {[%emt 0:01:41]} Ba5 {[%emt 0:09:21]} 12. g3 {[%emt 0:01:38]} g5 {[%emt 0:01:41]} 13. Bg2 {[%emt 0:01:35]} Rhg8 {[%emt 0:07:23]} 14. O-O-O {[%emt 0:01:05]} Nd7 {[%emt 0:05:16]} 15. Kb1 {[%emt 0:08:13]} Kb8 {[%emt 0:08:25]} 16. d4 {[%emt 0:12:26]} Bxc3 {[%emt 0:09:43]} 17. Bxc3 {[%emt 0:00:27]} Nb6 {[%emt 0:03:07]} 18. Rhe1 {[%emt 0:02:53]} Bc4 {[%emt 0:05:26]} 19. Qf3 {[%emt 0:01:26]} Qd7 {[%emt 0:03:36]} 20. b3 {[%emt 0:02:13]} Ba6 {[%emt 0:00:22]} 21. d5 {[%emt 0:03:09]} cxd5 {[%emt 0:00:43]} 22. exd5 {[%emt 0:00:18]} Rg6 {[%emt 0:05:10]} 23. Bb4 {[%emt 0:02:51]} Nc8 {[%emt 0:00:20]} 24. Qe3 {[%emt 0:07:32]} Rgg8 {[%emt 0:04:32]} 25. Qe5 {[%emt 0:04:15]} Rde8 {[%emt 0:01:30]} 26. Qf6 {[%emt 0:00:30]} Rg6 {[%emt 0:01:40]} 27. Qd4 {[%emt 0:01:03]} Rgg8 {[%emt 0:03:39]} 28. c4 {[%emt 0:04:55]} Rxe1 {[%emt 0:01:49]} 29. Rxe1 {[%emt 0:00:13]} Qf5+ {[%emt 0:02:20]} 30. Ka1 {[%emt 0:02:45]} Rd8 {[%emt 0:01:02]} 31. Kb2 {[%emt 0:03:42]} b6 {[%emt 0:04:52]} 32. g4 {[%emt 0:01:40]} Qd7 {[%emt 0:02:28]} 33. a4 {[%emt 0:02:31]} Bb7 {[%emt 0:01:19]} 34. Qf6 {[%emt 0:00:48]} Re8 {[%emt 0:00:10]} 35. Rxe8 {[%emt 0:00:49]} Qxe8 {[%emt 0:00:11]} 36. Bf3 {[%emt 0:00:16]} a5 {[%emt 0:01:26]} 37. Bc3 {[%emt 0:00:11]} Qf8 {[%emt 0:01:13]} 38. Qh8 {[%emt 0:09:08]} Qd6 {[%emt 0:03:12]} 39. Qe5 {[%emt 0:00:27]} Qf8 {[%emt 0:00:37]} 40. Be4 {[%emt 0:00:00]} Nd6 {[%emt 0:01:01]} 41. Bc2 {[%emt 0:00:41]} Ba6 {[%emt 0:00:38]} 42. Bd4 {[%emt 0:00:40]} Bxc4 {[%emt 0:00:29]} 1/2-1/2

[Event "World Senior chT-65 2019"]
[Site "Rhodes"]
[Date "2019.04.23"]
[Round "8.44"]
[White "Gunnarsson, Lennart"]
[Black "Kauko, Pekka"]
[Result "1-0"]
[ECO "D80"]
[WhiteElo "1752"]
[BlackElo "1902"]
[Annotator "NA RC"]
[PlyCount "103"]
[EventDate "2019.04.16"]
[EventType "team-tourn"]
[EventCountry "GRE"]
[SourceTitle "playchess.com"]
[Source "ChessBase"]
[SourceQuality "1"]
[WhiteTeam "Sweden"]
[BlackTeam "Finland"]
[WhiteTeamCountry "SWE"]
[BlackTeamCountry "FIN"]
[TimeControl "40/5400+30:1800+30"]

1. d4 {[%emt 0:00:00]} d5 {[%emt 0:00:00]} 2. c4 {[%emt 0:00:00]} c6 {[%emt 0:00:00]} 3. Nc3 {[%emt 0:01:12]} Nf6 {[%emt 0:00:13]} 4. Bg5 {[%emt 0:01:07]} g6 {[%emt 0:00:28]} 5. Bxf6 {[%emt 0:02:20]} exf6 {[%emt 0:00:04]} 6. e3 {[%emt 0:00:38]} Bg7 {[%emt 0:00:35]} 7. cxd5 {[%emt 0:00:51]} cxd5 {[%emt 0:00:12]} 8. Qb3 {[%emt 0:00:29]} O-O {[%emt 0:00:46]} 9. Qxd5 {[%emt 0:00:42]} Qe7 {[%emt 0:00:42]} 10. Qb3 {[%emt 0:10:52]} Nc6 {[%emt 0:00:38]} 11. Be2 {[%emt 0:04:02]} f5 {[%emt 0:02:12]} 12. Nf3 {[%emt 0:05:45]} f4 {[%emt 0:00:39]} 13. Nd5 {[%emt 0:01:45]} Qd8 {[%emt 0:04:58]} 14. Nxf4 {[%emt 0:01:04]} Re8 {[%emt 0:09:48]} 15. Rd1 {[%emt 0:04:23]} Bh6 {[%emt 0:02:48]} 16. g3 {[%emt 0:14:34]} Na5 {[%emt 0:03:38]} 17. Qd5 {[%emt 0:04:52]} Qb6 {[%emt 0:01:25]} 18. Ng5 {[%emt 0:03:02]} Bxg5 {[%emt 0:01:22]} 19. Qxg5 {[%emt 0:00:08]} Qb4+ {[%emt 0:00:58]} 20. Kf1 {[%emt 0:01:34]} Bf5 {[%emt 0:03:10]} 21. Nd5 {[%emt 0:04:02]} Bh3+ {[%emt 0:02:45]} 22. Kg1 {[%emt 0:00:27]} Qxb2 {[%emt 0:01:40]} 23. Nf6+ {[%emt 0:07:16]} Kg7 {[%emt 0:00:08]} 24. Nxe8+ {[%emt 0:00:23]} Rxe8 {[%emt 0:00:01]} 25. Qb5 {[%emt 0:00:32]} Qxa2 {[%emt 0:06:41]} 26. Bf3 {[%emt 0:02:59]} Re6 {[%emt 0:00:55]} 27. Qe2 {[%emt 0:01:26]} Qa4 {[%emt 0:02:36]} 28. Bg4 {[%emt 0:01:26]} Bxg4 {[%emt 0:02:04]} 29. Qxg4 {[%emt 0:00:02]} h5 {[%emt 0:02:04]} 30. Qe2 {[%emt 0:00:29]} Rf6 {[%emt 0:01:33]} 31. d5 {[%emt 0:01:19]} Nc4 {[%emt 0:00:52]} 32. Kg2 {[%emt 0:02:07]} Nd6 {[%emt 0:00:45]} 33. Rd4 {[%emt 0:00:49]} Qd7 {[%emt 0:02:35]} 34. e4 {[%emt 0:01:01]} Nb5 {[%emt 0:00:17]} 35. Rd2 {[%emt 0:03:51]} h4 {[%emt 0:00:46]} 36. Re1 {[%emt 0:01:23]} h3+ {[%emt 0:00:19]} 37. Kg1 {[%emt 0:00:42]} Rd6 {[%emt 0:01:56]} 38. Qf3 {[%emt 0:02:47]} f6 {[%emt 0:01:29]} 39. g4 {[%emt 0:00:26]} Qc7 {[%emt 0:01:36]} 40. Qxh3 {[%emt 0:00:00]} Qc4 {[%emt 0:00:00]} 41. Qd3 {[%emt 0:03:09]} Qa4 {[%emt 0:06:41]} 42. h3 {[%emt 0:01:32]} a6 {[%emt 0:00:55]} 43. g5 {[%emt 0:00:31]} Qa5 {[%emt 0:01:48]} 44. gxf6+ {[%emt 0:01:54]} Rxf6 {[%emt 0:00:02]} 45. e5 {[%emt 0:00:40]} Rf3 {[%emt 0:00:43]} 46. Re3 {[%emt 0:01:15]} Rf4 {[%emt 0:01:50]} 47. Rg3 {[%emt 0:01:37]} Qa1+ {[%emt 0:03:29]} 48. Kg2 {[%emt 0:00:58]} Qxe5 {[%emt 0:00:11]} 49. Qxg6+ {[%emt 0:00:34]} Kf8 {[%emt 0:00:19]} 50. Qg8+ {[%emt 0:00:31]} Ke7 {[%emt 0:00:10]} 51. Rg7+ {[%emt 0:01:08]} Kd6 {[%emt 0:01:16]} 52. Qb8+ {[%emt 0:00:19] Kxd5 [%emt 00:00:08]} 1-0

[Event "World Senior chT-65 2019"]
[Site "Rhodes"]
[Date "2019.04.24"]
[Round "9.1"]
[White "Renman, Nils-Gustaf"]
[Black "Sveshnikov, Evgeny"]
[Result "1/2-1/2"]
[ECO "D52"]
[WhiteElo "2358"]
[BlackElo "2481"]
[Annotator "ChessBase"]
[PlyCount "52"]
[EventDate "2019.04.16"]
[EventType "team-tourn"]
[EventCountry "GRE"]
[SourceTitle "playchess.com"]
[Source "ChessBase"]
[SourceQuality "1"]
[WhiteTeam "Sweden"]
[BlackTeam "Russia"]
[WhiteTeamCountry "SWE"]
[BlackTeamCountry "RUS"]
[TimeControl "40/5400+30:1800+30"]

1. d4 {[%emt 0:01:40]} d5 {[%emt 0:00:00]} 2. Nf3 {[%emt 0:00:14]} Nf6 {[%emt 0:00:00]} 3. c4 {[%emt 0:00:05]} e6 {[%emt 0:00:00]} 4. Nc3 {[%emt 0:00:09]} c6 {[%emt 0:00:04]} 5. Bg5 {[%emt 0:00:25]} Nbd7 {[%emt 0:00:47]} 6. e3 {[%emt 0:00:14]} Qa5 {[%emt 0:00:21]} 7. Nd2 {[%emt 0:00:12]} dxc4 {[%emt 0:00:45]} 8. Bxf6 {[%emt 0:00:15]} Nxf6 {[%emt 0:00:09]} 9. Nxc4 {[%emt 0:00:17]} Qc7 {[%emt 0:00:25]} 10. Be2 {[%emt 0:00:26]} Be7 {[%emt 0:00:23]} 11. O-O {[%emt 0:00:19]} O-O {[%emt 0:00:09]} 12. Rc1 {[%emt 0:04:18]} Rd8 {[%emt 0:05:25]} 13. Qb3 {[%emt 0:02:26]} Nd5 {[%emt 0:02:46]} 14. Bf3 {[%emt 0:07:43]} Bd7 {[%emt 0:07:25]} 15. g3 {[%emt 0:07:09]} Be8 {[%emt 0:01:36]} 16. Rfd1 {[%emt 0:01:04]} Rac8 {[%emt 0:01:48]} 17. Ne4 {[%emt 0:06:46]} Qb8 {[%emt 0:05:43]} 18. a3 {[%emt 0:10:42]} b6 {[%emt 0:03:02]} 19. Qa2 {[%emt 0:04:05]} a5 {[%emt 0:04:55]} 20. b3 {[%emt 0:08:00]} h6 {[%emt 0:05:56]} 21. Qb2 {[%emt 0:03:35]} Qa7 {[%emt 0:01:56]} 22. Ne5 {[%emt 0:01:08]} c5 {[%emt 0:02:25]} 23. dxc5 {[%emt 0:00:54]} bxc5 {[%emt 0:00:02]} 24. Nc3 {[%emt 0:07:31]} Nxc3 {[%emt 0:01:07]} 25. Qxc3 {[%emt 0:00:06]} Rxd1+ {[%emt 0:01:28]} 26. Bxd1 {[%emt 0:01:10]} Bf6 {[%emt 0:04:39]} 1/2-1/2

[Event "World Senior chT-65 2019"]
[Site "Rhodes"]
[Date "2019.04.24"]
[Round "9.4"]
[White "Pushkov, Nikolai"]
[Black "Hedin, Gunnar"]
[Result "1/2-1/2"]
[ECO "A81"]
[WhiteElo "2295"]
[BlackElo "2195"]
[Annotator "NA"]
[PlyCount "64"]
[EventDate "2019.04.16"]
[EventType "team-tourn"]
[EventCountry "GRE"]
[SourceTitle "playchess.com"]
[Source "ChessBase"]
[SourceQuality "1"]
[WhiteTeam "Russia"]
[BlackTeam "Sweden"]
[WhiteTeamCountry "RUS"]
[BlackTeamCountry "SWE"]
[TimeControl "40/5400+30:1800+30"]

1. d4 {[%emt 0:00:00]} f5 {[%emt 0:00:00]} 2. Nf3 {[%emt 0:00:00]} Nf6 {[%emt 0:00:10]} 3. g3 {[%emt 0:00:07]} g6 {[%emt 0:00:14]} 4. Bg2 {[%emt 0:00:08]} Bg7 {[%emt 0:00:06]} 5. O-O {[%emt 0:00:10]} O-O {[%emt 0:00:07]} 6. b4 {[%emt 0:01:06]} Nc6 {[%emt 0:02:49]} 7. a3 {[%emt 0:00:58]} Ne4 {[%emt 0:02:12]} 8. Bb2 {[%emt 0:00:05]} d5 {[%emt 0:13:21]} 9. Nbd2 {[%emt 0:02:55]} a6 {[%emt 0:05:34]} 10. Ne5 {[%emt 0:04:10]} Nxe5 {[%emt 0:03:24]} 11. dxe5 {[%emt 0:00:10]} Nxd2 {[%emt 0:01:15]} 12. Qxd2 {[%emt 0:00:03]} c6 {[%emt 0:00:10]} 13. Bd4 {[%emt 0:07:32]} Be6 {[%emt 0:07:55]} 14. f4 {[%emt 0:01:50]} a5 {[%emt 0:17:49]} 15. Qe3 {[%emt 0:05:29]} Qd7 {[%emt 0:05:36]} 16. Bb6 {[%emt 0:02:14]} axb4 {[%emt 0:01:10]} 17. axb4 {[%emt 0:00:02]} Rfc8 {[%emt 0:03:12]} 18. Qd4 {[%emt 0:08:16]} Qe8 {[%emt 0:05:14]} 19. e3 {[%emt 0:00:58]} Rxa1 {[%emt 0:01:39]} 20. Rxa1 {[%emt 0:00:03]} Ra8 {[%emt 0:00:07]} 21. Bf1 {[%emt 0:04:13]} Rxa1 {[%emt 0:02:42]} 22. Qxa1 {[%emt 0:00:07]} Qb8 {[%emt 0:02:18]} 23. Be2 {[%emt 0:03:35]} Kf7 {[%emt 0:01:35]} 24. h3 {[%emt 0:01:03]} h5 {[%emt 0:02:47]} 25. Kf2 {[%emt 0:00:43]} Kg8 {[%emt 0:06:08]} 26. Qa5 {[%emt 0:03:13]} Kf7 {[%emt 0:00:50]} 27. Bd4 {[%emt 0:02:42]} Qc8 {[%emt 0:01:47]} 28. Qa7 {[%emt 0:00:58]} b5 {[%emt 0:01:47]} 29. Bc5 {[%emt 0:07:49]} Bf8 {[%emt 0:01:16]} 30. c3 {[%emt 0:00:59]} Qd7 {[%emt 0:00:37]} 31. Qb8 {[%emt 0:06:16]} Qc8 {[%emt 0:00:30]} 32. Qa7 {[%emt 0:07:52]} Qd7 {[%emt 0:01:46]} 1/2-1/2